bitfinex-derivatives/quotes_SOLF0:USTF0_20260202
["timestamp","ask_amount","ask_price","bid_price","bid_amount"]
[1770055621457,59.97653851,104.32,104.26,54.00977422]
[1770055621958,57.04093839,104.32,104.26,56.94537434]
[1770055622550,194.25713851,104.34,104.27,56.94537434]
[1770055622756,57.04093839,104.33,104.27,56.94537434]
[1770055622958,8.6338,104.32,104.27,56.94537434]
[1770055623253,57.04093839,104.33,104.27,56.94537434]
[1770055623454,8.6329,104.33,104.28,56.94537434]
[1770055623757,57.04093839,104.35,104.29,56.94537434]
[1770055623954,59.97653851,104.32,104.27,54.00977422]
[1770055625058,2.93560012,104.31,104.27,54.00977422]
[1770055626257,11.56850012,104.33,104.27,56.94537434]
[1770055626462,57.04093839,104.36,104.28,54.00977422]
[1770055626657,57.04093839,104.35,104.28,54.00977422]
[1770055627163,57.04093839,104.34,104.28,54.00977422]
[1770055627864,57.04093839,104.34,104.26,54.00977422]
[1770055628562,65.67393839,104.33,104.26,62.64847422]
[1770055629064,65.67393839,104.33,104.27,62.64737422]
[1770055630058,65.67393839,104.33,104.27,54.00977422]
[1770055630269,57.04093839,104.32,104.24,54.00977422]
[1770055630462,57.04093839,104.3,104.22,54.00977422]
[1770055630860,57.04093839,104.29,104.22,62.65177422]
[1770055631055,57.04093839,104.29,104.22,54.00977422]
[1770055631260,57.04093839,104.3,104.22,54.00977422]
[1770055631459,57.04093839,104.3,104.23,54.00977422]
[1770055631763,57.04093839,104.33,104.24,54.00977422]
[1770055632463,57.04093839,104.32,104.26,54.00977422]
[1770055632663,57.04093839,104.28,104.2,54.00977422]
[1770055632857,191.37183839,104.3,104.2,61.36290956]
[1770055633263,57.04093839,104.29,104.2,61.36290956]
[1770055633657,8.637,104.28,104.2,61.36290956]
[1770055633857,57.04093839,104.26,104.2,54.00977422]
[1770055634258,8.6399,104.25,104.2,54.00977422]
[1770055636067,8.6382,104.27,104.2,54.00977422]
[1770055637862,57.04093839,104.28,104.2,54.00977422]
[1770055638371,65.67613839,104.31,104.22,54.00977422]
[1770055639061,191.38473839,104.29,104.22,54.00977422]
[1770055639260,57.04093839,104.28,104.22,54.00977422]
[1770055639768,8.6382,104.27,104.22,54.00977422]
[1770055639962,56.49793519,104.27,104.2,54.00284042]
[1770055640766,8.6388,104.26,104.2,54.00284042]
[1770055641568,8.6377,104.28,104.2,54.00284042]
[1770055642167,8.6379,104.27,104.2,62.64634042]
[1770055643865,56.49793519,104.3,104.22,54.00284042]
[1770055644270,190.82763519,104.3,104.22,54.00284042]
[1770055645460,8.637,104.28,104.22,62.64484042]
[1770055645866,8.637,104.28,104.22,54.00284042]
[1770055646768,8.6379,104.27,104.22,54.00284042]
[1770055647563,65.13493519,104.29,104.22,62.64474042]
[1770055647767,56.49793519,104.29,104.22,62.64474042]
[1770055648465,8.6361,104.3,104.24,54.00284042]
[1770055649368,8.6346,104.31,104.24,54.00284042]
[1770055649568,56.49793519,104.32,104.24,54.00284042]
[1770055649969,8.6358,104.3,104.24,62.64244042]
[1770055650272,56.49793519,104.31,104.24,54.00284042]
[1770055651372,8.6364,104.29,104.24,54.00284042]
[1770055653476,8.6371,104.28,104.24,54.00284042]
[1770055657873,8.6358,104.3,104.24,62.64304042]
[1770055658278,56.49793519,104.31,104.24,54.00284042]
[1770055659073,190.81503519,104.31,104.24,54.00284042]
[1770055659280,56.49793519,104.3,104.24,54.00284042]
[1770055660283,8.6373,104.28,104.24,54.00284042]
[1770055661279,8.638,104.27,104.21,62.64544042]
[1770055661484,56.49793519,104.28,104.21,62.64544042]
[1770055661687,56.49793519,104.28,104.21,54.00284042]
[1770055662080,8.6393,104.26,104.21,54.00284042]
[1770055662389,56.49793519,104.27,104.21,54.00284042]
[1770055663085,8.6405,104.24,104.18,54.00284042]
[1770055663784,56.49793519,104.24,104.17,436.54284042]
[1770055663991,190.90823519,104.24,104.17,436.54284042]
[1770055664391,190.90823519,104.24,104.17,54.00284042]
[1770055665387,8.6428,104.22,104.17,54.00284042]
[1770055665586,56.49793519,104.23,104.17,54.00284042]
[1770055666391,8.643,104.21,104.17,54.00284042]
[1770055671390,141.77431447,104.24,104.17,54.00284042]
[1770055671589,194.46300296,104.24,104.17,54.00284042]
[1770055671896,8.6428,104.22,104.17,54.00284042]
[1770055672692,490.00791447,104.26,104.17,54.00284042]
[1770055672693,187.05778849,104.27,104.17,54.00284042]
[1770055672891,52.68868849,104.26,104.17,54.00284042]
[1770055673394,8.6396,104.25,104.19,56.95707923]
[1770055673791,392.23270296,104.28,104.19,56.95707923]
[1770055673993,8.6387,104.27,104.22,56.95707923]
[1770055674191,52.68868849,104.28,104.22,56.95707923]
[1770055674786,8.6379,104.27,104.22,56.95707923]
[1770055676992,61.32568849,104.28,104.22,56.95707923]
[1770055677295,52.68868849,104.28,104.22,56.95707923]
[1770055677893,52.68868849,104.27,104.2,56.95707923]
[1770055678994,8.6389,104.26,104.2,56.95707923]
[1770055679496,8.6389,104.26,104.2,65.60067923]
[1770055680195,52.68868849,104.29,104.22,56.95707923]
[1770055680391,194.37020296,104.31,104.22,56.95707923]
[1770055680694,52.68868849,104.3,104.22,56.95707923]
[1770055682091,52.68868849,104.32,104.23,56.95707923]
[1770055682298,526.89460296,104.34,104.25,56.95707923]
[1770055682496,52.68868849,104.33,104.25,56.95707923]
[1770055682891,8.6345,104.32,104.25,65.59617923]
[1770055683896,8.6346,104.31,104.25,65.59617923]
[1770055684194,52.68868849,104.3,104.25,56.95707923]
[1770055685090,186.97998849,104.33,104.25,56.95707923]
[1770055685596,8.6355,104.3,104.25,56.95707923]
[1770055688892,52.68868849,104.28,104.21,56.95707923]
[1770055689099,187.04458849,104.28,104.21,56.95707923]
[1770055689396,8.6397,104.25,104.21,56.95707923]
[1770055690001,205.93829315,104.32,104.21,56.95707923]
[1770055690200,52.68868849,104.31,104.22,56.95707923]
[1770055691101,187.00768849,104.31,104.23,56.95707923]
[1770055691302,187.03438849,104.29,104.23,56.95707923]
[1770055692400,8.6382,104.27,104.23,56.95707923]
[1770055694004,52.68868849,104.31,104.23,56.95707923]
[1770055694703,394.55270296,104.33,104.23,56.95707923]
[1770055694903,521.47968849,104.33,104.23,56.95707923]
[1770055695104,8.6363,104.29,104.23,56.95707923]
[1770055695296,187.01878849,104.3,104.23,56.95707923]
[1770055695701,8.6373,104.28,104.23,56.95707923]
[1770055697300,187.01878849,104.3,104.23,56.95707923]
[1770055698099,8.6371,104.28,104.23,56.95707923]
[1770055698703,52.68868849,104.3,104.23,56.95707923]
[1770055699098,52.68868849,104.27,104.19,56.95707923]
[1770055699296,52.68868849,104.25,104.17,56.95707923]
[1770055699702,505.24220296,104.27,104.17,56.95707923]
[1770055700203,54.63554432,104.25,104.17,56.95707923]
[1770055700402,54.63554432,104.27,104.18,54.10784193]
[1770055700600,61.99955879,104.29,104.2,54.10784193]
[1770055701004,8.6374,104.28,104.2,62.75134193]
[1770055701299,54.63554432,104.26,104.19,54.10784193]
[1770055701802,8.6388,104.26,104.19,54.10784193]
[1770055702405,8.6396,104.25,104.19,54.10784193]
[1770055702806,54.63554432,104.25,104.19,54.10784193]
[1770055703002,8.6405,104.24,104.19,54.10784193]
[1770055703202,54.63554432,104.24,104.17,54.10784193]
[1770055703403,8.6401,104.25,104.17,61.4718564]
[1770055703602,188.99314432,104.28,104.18,54.10784193]
[1770055703804,54.63554432,104.28,104.19,54.10784193]
[1770055704307,54.63554432,104.26,104.19,54.10784193]
[1770055705307,8.6396,104.25,104.19,54.10784193]
[1770055706908,8.6385,104.27,104.19,54.10784193]
[1770055707813,8.6388,104.26,104.19,62.75214193]
[1770055708809,8.6396,104.25,104.19,54.10784193]
[1770055710214,8.6385,104.27,104.19,54.10784193]
[1770055710416,54.63554432,104.27,104.19,62.75224193]
[1770055711416,8.6387,104.26,104.19,62.75224193]
[1770055711818,8.6387,104.26,104.21,54.10784193]
[1770055712109,8.6379,104.27,104.21,54.10784193]
[1770055717410,54.63554432,104.27,104.21,54.10784193]
[1770055718513,8.6396,104.25,104.21,54.10784193]
[1770055719719,8.6388,104.26,104.21,54.10784193]
[1770055720016,188.97894432,104.29,104.21,54.10784193]
[1770055720218,54.63554432,104.3,104.21,54.10784193]
[1770055720414,54.63554432,104.3,104.23,54.10784193]
[1770055721425,8.637,104.29,104.23,62.74894193]
[1770055721719,54.63554432,104.3,104.23,54.10784193]
[1770055722419,8.6372,104.28,104.23,54.10784193]
[1770055727527,8.6372,104.28,104.23,62.74894193]
[1770055728226,8.6372,104.28,104.23,54.10784193]
[1770055728431,8.6372,104.28,104.23,57.05147585]
[1770055728924,8.6372,104.28,104.23,54.10784193]
[1770055729828,8.6363,104.29,104.23,65.69267585]
[1770055731719,54.4844742,104.32,104.25,56.55976532]
[1770055732830,60.17634028,104.3,104.25,53.6161314]
[1770055733128,63.1199742,104.3,104.25,53.6161314]
[1770055733330,185.84694028,104.32,104.25,53.6161314]
[1770055733529,2.94363392,104.31,104.25,53.6161314]
[1770055734332,8.6361,104.3,104.25,53.6161314]
[1770055734822,11.57833392,104.31,104.25,62.2554314]
[1770055735026,8.6347,104.31,104.25,65.19906532]
[1770055739730,8.6347,104.31,104.23,134.4166]
[1770055739731,8.6338,104.32,104.26,65.19806532]
[1770055740832,11.57743392,104.32,104.26,62.2544314]
[1770055741029,2.94363392,104.3,104.23,2.94363392]
[1770055741235,54.4844742,104.3,104.24,53.6161314]
[1770055741629,2.94363392,104.3,104.24,53.6161314]
[1770055742135,11.57903392,104.3,104.24,62.2564314]
[1770055743036,8.6363,104.29,104.24,62.2564314]
[1770055743632,8.6363,104.29,104.24,65.20006532]
[1770055743836,2.94363392,104.32,104.26,53.6161314]
[1770055744134,54.4844742,104.32,104.26,53.6161314]
[1770055744927,2.94363392,104.31,104.26,53.6161314]
[1770055745133,2.94363392,104.3,104.26,53.6161314]
[1770055746237,8.6363,104.29,104.24,53.6161314]
[1770055749441,54.4844742,104.3,104.24,53.6161314]
[1770055749641,2.94363392,104.28,104.24,35.5406314]
[1770055750539,63.1230742,104.27,104.21,8.6422]
[1770055750739,2.94363392,104.27,104.21,8.6422]
[1770055750939,185.89074028,104.29,104.21,11.58583392]
[1770055750940,2.94363392,104.28,104.21,11.58583392]
[1770055751238,8.638,104.27,104.21,11.58583392]
[1770055751641,8.638,104.27,104.22,53.6161314]
[1770055751838,8.638,104.27,104.22,62.2581314]
[1770055757647,11.58163392,104.27,104.22,53.6161314]
[1770055760856,8.6393,104.26,104.22,53.6161314]
[1770055767764,64.34260337,104.26,104.22,53.6161314]
[1770055767954,11.58293392,104.26,104.22,53.6161314]
[1770055768562,8.6396,104.25,104.22,53.6161314]
[1770055768964,2.94363392,104.27,104.22,53.6161314]
[1770055769962,52.75966945,104.26,104.2,65.33308604]
[1770055770167,2.94363392,104.27,104.2,59.63321996]
[1770055770369,55.70330337,104.28,104.2,59.63321996]
[1770055770868,55.70330337,104.28,104.22,56.68958604]
[1770055771468,8.638,104.27,104.22,65.33158604]
[1770055772167,8.638,104.27,104.22,56.68958604]
[1770055772769,61.39686945,104.28,104.22,65.33148604]
[1770055772969,134.3307,104.3,104.24,56.68958604]
[1770055772970,55.70330337,104.3,104.24,56.68958604]
[1770055774259,8.6363,104.29,104.24,56.68958604]
[1770055774668,64.33960337,104.29,104.24,56.68958604]
[1770055775071,55.70330337,104.29,104.24,65.32978604]
[1770055775262,55.70330337,104.29,104.24,56.68958604]
[1770055775770,64.33970337,104.29,104.24,56.68958604]
[1770055776373,55.70330337,104.27,104.2,59.63321996]
[1770055776666,2.94363392,104.26,104.2,56.68958604]
[1770055777773,55.70330337,104.26,104.2,56.68958604]
[1770055777973,64.34220337,104.26,104.2,65.33318604]
[1770055780569,8.6389,104.26,104.22,56.68958604]
[1770055780777,2.94363392,104.29,104.22,59.63321996]
[1770055780977,55.70330337,104.3,104.24,56.68958604]
[1770055782475,469.5006,104.34,104.24,56.68958604]
[1770055782476,52.75966945,104.34,104.27,56.68958604]
[1770055782677,55.70330337,104.33,104.27,56.68958604]
[1770055783074,8.6337,104.32,104.27,56.68958604]
[1770055783582,52.75966945,104.35,104.27,59.63321996]
[1770055783781,55.70330337,104.35,104.28,59.63321996]
[1770055783981,52.75966945,104.35,104.3,56.68958604]
[1770055784182,55.70330337,104.37,104.3,68.26841996]
[1770055784682,8.6304,104.36,104.3,68.26841996]
[1770055786083,52.75966945,104.41,104.34,56.68958604]
[1770055786279,2.94363392,104.4,104.34,56.68958604]
[1770055786480,55.69716458,104.41,104.34,56.68958604]
[1770055786686,52.75966945,104.41,104.36,56.68958604]
[1770055786983,55.69716458,104.41,104.36,56.68958604]
[1770055787179,55.69716458,104.43,104.36,59.62708117]
[1770055787583,2.93749513,104.41,104.36,56.68958604]
[1770055788488,2.93749513,104.42,104.36,56.68958604]
[1770055788879,58.97431014,104.45,104.38,53.73869149]
[1770055789284,56.03681501,104.45,104.38,53.73869149]
[1770055789490,58.97431014,104.45,104.38,53.73869149]
[1770055789789,58.97431014,104.46,104.39,50.80119636]
[1770055790085,2.93749513,104.45,104.39,50.80119636]
[1770055790686,2.93749513,104.44,104.39,50.80119636]
[1770055791083,53.119533,104.45,104.39,50.80119636]
[1770055791386,2.93749513,104.48,104.41,54.5019799]
[1770055791986,2.93749513,104.47,104.41,51.56448477]
[1770055792381,56.05702813,104.46,104.38,51.56448477]
[1770055792586,53.119533,104.45,104.38,51.56448477]
[1770055792786,53.119533,104.45,104.38,54.5019799]
[1770055792987,64.68022813,104.45,104.38,54.5019799]
[1770055793489,2.93749513,104.44,104.38,51.56448477]
[1770055795880,11.56159513,104.44,104.38,51.56448477]
[1770055796081,2.93749513,104.43,104.38,51.56448477]
[1770055796487,187.281833,104.43,104.35,51.56448477]
[1770055796790,53.119533,104.42,104.35,51.56448477]
[1770055797088,61.745033,104.42,104.35,51.56448477]
[1770055798384,61.745033,104.42,104.35,60.19558477]
[1770055798691,8.6264,104.41,104.35,51.56448477]
[1770055799286,8.6264,104.41,104.34,8.632]
[1770055799287,53.119533,104.4,104.33,297.36448477]
[1770055799586,53.119533,104.39,104.33,51.56448477]
[1770055799987,8.6292,104.38,104.33,51.56448477]
[1770055802784,8.6296,104.37,104.31,51.56448477]
[1770055803193,8.6306,104.36,104.31,51.56448477]
[1770055803394,187.360633,104.37,104.31,51.56448477]
[1770055803593,53.119533,104.36,104.31,51.56448477]
[1770055803893,8.6314,104.35,104.29,51.56448477]
[1770055804294,194.71229037,104.36,104.29,51.56448477]
[1770055804693,8.6322,104.34,104.29,51.56448477]
[1770055805888,8.6312,104.36,104.29,51.56448477]
[1770055806697,8.6313,104.35,104.29,51.56448477]
[1770055806997,53.119533,104.35,104.29,51.56448477]
[1770055807296,8.6312,104.36,104.29,51.56448477]
[1770055808387,8.6312,104.36,104.29,60.20068477]
[1770055808588,8.6321,104.34,104.29,51.56448477]
[1770055808901,187.385033,104.35,104.29,51.56448477]
[1770055809198,8.6329,104.33,104.29,51.56448477]
[1770055810090,8.6329,104.33,104.26,8.6385]
[1770055810295,187.385033,104.35,104.23,523.96825737]
[1770055810296,8.6338,104.32,104.27,51.56448477]
[1770055810596,187.397633,104.34,104.27,51.56448477]
[1770055810597,60.45879037,104.34,104.27,51.56448477]
[1770055810794,8.6329,104.33,104.27,51.56448477]
[1770055811096,53.119533,104.34,104.27,51.56448477]
[1770055812298,8.6337,104.32,104.27,51.56448477]
[1770055812696,187.372733,104.36,104.27,51.56448477]
[1770055813000,53.119533,104.33,104.27,51.56448477]
[1770055813391,8.6339,104.32,104.27,51.56448477]
[1770055815907,61.752633,104.33,104.27,51.56448477]
[1770055816406,8.6338,104.32,104.27,51.56448477]
[1770055819113,53.119533,104.3,104.23,51.56448477]
[1770055820400,8.6363,104.29,104.23,60.20558477]
[1770055820904,8.6356,104.3,104.25,51.51414364]
[1770055821210,52.36522311,104.31,104.25,51.51414364]
[1770055822011,186.68252311,104.31,104.25,51.51414364]
[1770055822211,8.6364,104.29,104.25,51.51414364]
[1770055822608,52.36522311,104.28,104.21,51.51414364]
[1770055823101,52.36522311,104.27,104.21,51.51414364]
[1770055823807,8.6387,104.26,104.21,51.51414364]
[1770055824014,186.73332311,104.27,104.21,51.51414364]
[1770055824217,8.6396,104.25,104.21,51.51414364]
[1770055825317,52.36522311,104.25,104.17,51.51414364]
[1770055826412,52.36522311,104.27,104.18,51.51414364]
[1770055826605,7.33925737,104.28,104.2,51.51414364]
[1770055826810,59.70448048,104.32,104.23,51.51414364]
[1770055827008,59.70448048,104.32,104.24,51.51414364]
[1770055827009,52.36522311,104.32,104.24,51.51414364]
[1770055828911,60.99932311,104.32,104.24,51.51414364]
[1770055829108,195.30312311,104.32,104.24,51.51414364]
[1770055829316,52.36522311,104.3,104.24,51.51414364]
[1770055829515,195.34382311,104.29,104.21,51.51414364]
[1770055829708,194.06088048,104.28,104.21,51.51414364]
[1770055829910,52.36522311,104.27,104.17,516.9897]
[1770055830119,52.36522311,104.26,104.18,51.51414364]
[1770055830616,194.04648048,104.29,104.19,51.51414364]
[1770055830921,52.36522311,104.29,104.2,51.51414364]
[1770055831317,195.34402311,104.29,104.2,60.15744364]
[1770055831721,61.00192311,104.29,104.21,51.51414364]
[1770055831918,8.6367,104.29,104.21,60.15674364]
[1770055832113,8.6349,104.31,104.23,51.51414364]
[1770055832319,8.6349,104.31,104.23,58.85340101]
[1770055832521,8.6349,104.31,104.23,60.15504364]
[1770055833419,142.9343,104.33,104.25,51.51414364]
[1770055833618,8.6335,104.33,104.25,51.51414364]
[1770055834020,8.6339,104.32,104.25,60.15334364]
[1770055834424,8.6339,104.32,104.25,51.51414364]
[1770055834818,186.65222311,104.34,104.25,51.51414364]
[1770055836319,8.6339,104.32,104.25,60.15344364]
[1770055843124,8.6339,104.32,104.27,51.51414364]
[1770055844120,186.64332311,104.34,104.24,60.15414364]
[1770055844121,52.36522311,104.31,104.24,60.15414364]
[1770055844517,2.94307887,104.3,104.24,60.15414364]
[1770055844717,55.30830198,104.31,104.24,63.09722251]
[1770055845526,8.6357,104.3,104.24,63.09722251]
[1770055846621,11.57877887,104.3,104.24,63.09722251]
[1770055846822,8.6357,104.3,104.24,63.09722251]
[1770055847627,63.94290198,104.31,104.25,60.15344364]
[1770055848320,60.99892311,104.33,104.26,60.15254364]
[1770055848519,52.36522311,104.33,104.26,60.15254364]
[1770055848731,51.97563468,104.32,104.26,51.51414364]
[1770055850527,8.6354,104.3,104.26,51.51414364]
[1770055852128,54.68203214,104.33,104.26,51.51414364]
[1770055852428,8.6345,104.32,104.26,60.15284364]
[1770055852926,54.68203214,104.33,104.26,51.51414364]
[1770055853730,8.6346,104.31,104.26,51.51414364]
[1770055854628,8.6334,104.33,104.28,54.86344576]
[1770055855130,54.68203214,104.35,104.28,54.86344576]
[1770055855331,8.633,104.33,104.28,54.86344576]
[1770055857228,8.6321,104.34,104.28,63.50044576]
[1770055858029,63.31333214,104.35,104.29,63.49964576]
[1770055859026,54.68203214,104.34,104.27,54.86344576]
[1770055859530,8.6332,104.33,104.27,63.50114576]
[1770055861234,8.6339,104.32,104.27,54.86344576]
[1770055863833,8.633,104.33,104.27,54.86344576]
[1770055864027,188.93463214,104.36,104.27,54.86344576]
[1770055864229,54.68203214,104.34,104.28,54.86344576]
[1770055865030,54.68203214,104.33,104.26,63.50194576]
[1770055866334,8.6347,104.31,104.26,63.50194576]
[1770055870043,54.68203214,104.3,104.24,437.28344576]
[1770055870343,57.62530393,104.3,104.24,437.28344576]
[1770055870937,54.68203214,104.28,104.21,54.86344576]
[1770055871143,2.94327179,104.27,104.21,54.86344576]
[1770055871539,8.638,104.27,104.21,57.80671755]
[1770055873134,66.26240393,104.28,104.23,54.86344576]
[1770055875834,2.94327179,104.27,104.23,54.86344576]
[1770055878237,66.26240393,104.28,104.23,54.86344576]
[1770055879243,11.58187179,104.27,104.23,54.86344576]
[1770055880346,11.58037179,104.28,104.23,54.86344576]
[1770055881550,8.6371,104.28,104.23,63.50454576]
[1770055881740,11.58037179,104.28,104.23,63.50454576]
[1770055882645,63.573956,104.28,104.23,54.86344576]
[1770055882845,11.58117179,104.27,104.23,54.86344576]
[1770055892964,8.6379,104.27,104.23,54.86344576]
[1770055894366,11.58117179,104.27,104.23,54.86344576]
[1770055897266,11.58197179,104.26,104.23,54.86344576]
[1770055897971,11.58197179,104.26,104.21,63.12622268]
[1770055898871,11.58197179,104.26,104.21,54.48352268]
[1770055899571,2.94327179,104.24,104.21,54.48352268]
[1770055901372,8.6405,104.24,104.21,54.48352268]
[1770055901573,8.6405,104.24,104.19,63.12782268]
[1770055901973,8.6405,104.24,104.19,54.48352268]
[1770055903065,54.936856,104.24,104.18,391.2251]
[1770055903268,11.58447179,104.23,104.18,445.70862268]
[1770055903879,63.577356,104.24,104.19,54.48352268]
[1770055904677,2.94327179,104.23,104.19,54.48352268]
[1770055906778,11.58457179,104.23,104.19,54.48352268]
[1770055907280,8.6413,104.23,104.19,54.48352268]
[1770055907578,2.94327179,104.2,104.17,38.98352268]
[1770055907777,2.94327179,104.19,104.14,2.77948636]
[1770055908281,2.94327179,104.2,104.14,2.77948636]
[1770055909180,8.6445,104.19,104.14,2.77948636]
[1770055909782,8.6445,104.19,104.14,54.51707682]
[1770055910080,11.58777179,104.19,104.14,54.51707682]
[1770055910477,2.94950441,104.18,104.14,54.51707682]
[1770055910876,2.94950441,104.17,104.14,2.77948636]
[1770055911081,52.65169283,104.18,104.14,2.77948636]
[1770055911282,55.60119724,104.18,104.14,2.77948636]
[1770055911476,8.6446,104.19,104.14,54.29048991]
[1770055911680,8.6446,104.19,104.14,57.23999432]
[1770055912082,52.65169283,104.24,104.17,54.29040355]
[1770055912283,55.60119724,104.19,104.14,54.29048991]
[1770055912581,2.94950441,104.18,104.14,54.29048991]
[1770055913379,2.94950441,104.2,104.14,54.29048991]
[1770055913684,2.94950441,104.2,104.15,62.93820355]
[1770055913685,8.6443,104.2,104.15,62.93820355]
[1770055915487,2.94950441,104.18,104.14,8.636e-05]
[1770055915684,2.94950441,104.17,104.14,8.636e-05]
[1770055916489,8.6471,104.16,104.14,8.636e-05]
[1770055916787,134.4747,104.19,104.14,8.636e-05]
[1770055916982,137.42420441,104.19,104.14,8.636e-05]
[1770055917179,55.60119724,104.2,104.14,8.636e-05]
[1770055917383,55.60119724,104.2,104.14,54.29048991]
[1770055917586,190.07129724,104.2,104.14,54.29048991]
[1770055918181,8.6465,104.17,104.14,54.29048991]
[1770055919486,8.647,104.16,104.14,54.29048991]
[1770055919877,134.4856,104.18,104.14,54.29048991]
[1770055920077,8.6478,104.15,104.14,8.636e-05]
[1770055920888,324.65519724,104.15,104.09,54.29040355]
[1770055921687,324.65519724,104.15,104.09,57.23990796]
[1770055922088,321.70569283,104.15,104.09,57.23990796]
[1770055922294,8.65,104.13,104.09,57.23990796]
[1770055922485,321.70569283,104.15,104.09,57.23990796]
[1770055922786,321.70569283,104.15,104.09,54.29040355]
[1770055923085,8.6505,104.12,104.09,54.29040355]
[1770055925688,8.6505,104.12,104.09,57.23990796]
[1770055926287,8.6505,104.12,104.09,54.29040355]
[1770055928392,134.5098,104.16,104.11,54.29040355]
[1770055928592,190.11099724,104.16,104.11,54.29040355]
[1770055929090,8.6493,104.14,104.11,54.29040355]
[1770055929793,8.6499,104.13,104.11,54.29040355]
[1770055929994,8.6499,104.13,104.09,54.29040355]
[1770055930395,8.6487,104.14,104.09,57.23990796]
[1770055930693,8.6487,104.14,104.11,54.29040355]
[1770055931094,8.6495,104.13,104.11,54.29040355]
[1770055937895,187.16149283,104.16,104.11,54.29040355]
[1770055938095,190.11099724,104.16,104.11,54.29040355]
[1770055938292,52.65169283,104.16,104.11,54.29040355]
[1770055938696,55.60119724,104.16,104.11,54.29040355]
[1770055939194,2.94950441,104.15,104.11,54.29040355]
[1770055939394,8.6488,104.14,104.11,54.29040355]
[1770055939995,8.6496,104.13,104.09,49.61688251]
[1770055948403,134.5155,104.16,104.09,61.21908692]
[1770055948404,8.6491,104.14,104.09,61.21908692]
[1770055949096,8.648,104.15,104.09,61.21908692]
[1770055949502,53.26002528,104.16,104.09,61.21908692]
[1770055950102,8.6487,104.14,104.09,58.26958251]
[1770055952208,8.6487,104.14,104.09,61.21908692]
[1770055953902,58.95842087,104.15,104.09,61.21908692]
[1770055954110,53.26002528,104.17,104.11,49.61688251]
[1770055954605,8.6476,104.16,104.11,49.61688251]
[1770055958909,8.6476,104.16,104.11,58.26798251]
[1770055961711,2.94950441,104.15,104.11,49.61688251]
[1770055961912,2.94950441,104.14,104.08,49.61688251]
[1770055962211,50.31052087,104.15,104.08,49.61688251]
[1770055962212,2.94950441,104.13,104.08,49.61688251]
[1770055962918,8.6494,104.14,104.08,49.61688251]
[1770055963313,61.90942528,104.14,104.08,49.61688251]
[1770055963510,2.94950441,104.13,104.08,49.61688251]
[1770055963814,61.90942528,104.14,104.08,49.61688251]
[1770055964217,61.90942528,104.14,104.08,58.27038251]
[1770055966815,11.59910441,104.13,104.08,49.61688251]
[1770055971722,8.6488,104.14,104.08,58.27028251]
[1770055971918,45.75735149,104.14,104.08,58.27028251]
[1770055972220,8.6496,104.13,104.08,49.61688251]
[1770055973522,42.80784708,104.19,104.13,43.05571085]
[1770055973922,42.80784708,104.19,104.14,2.95236789]
[1770055974625,42.80784708,104.16,104.1,46.00807874]
[1770055974820,42.80784708,104.15,104.1,46.00807874]
[1770055975021,45.76021497,104.15,104.1,43.05571085]
[1770055975624,8.6497,104.13,104.1,43.05571085]
[1770055976619,8.6497,104.13,104.1,46.00807874]
[1770055978331,8.6497,104.13,104.1,2.95236789]
[1770055980132,8.6497,104.13,104.11,2.95236789]
[1770055980329,51.45664708,104.14,104.11,2.95236789]
[1770055981134,42.80784708,104.13,104.07,43.05571085]
[1770055981335,42.80784708,104.13,104.08,2.95236789]
[1770055981535,42.80784708,104.13,104.09,2.95236789]
[1770055982336,8.6506,104.12,104.1,2.95236789]
[1770055983638,8.6506,104.12,104.08,43.05571085]
[1770055983832,8.6506,104.12,104.09,2.95236789]
[1770055984037,8.6506,104.12,104.1,2.95236789]
[1770055987835,42.80784708,104.17,104.11,46.00807874]
[1770055988039,42.80784708,104.17,104.15,2.95236789]
[1770055988637,42.80784708,104.19,104.16,2.95236789]
[1770055988938,134.4415,104.22,104.18,2.95236789]
[1770055989539,8.643,104.21,104.18,2.95236789]
[1770055990739,8.6418,104.23,104.2,2.95236789]
[1770055990941,8.6418,104.23,104.21,2.95236789]
[1770055991239,8.6418,104.23,104.2,2.95236789]
[1770055991439,42.80784708,104.25,104.18,43.05571085]
[1770055991643,42.80784708,104.25,104.21,2.95236789]
[1770055991843,8.6406,104.24,104.21,2.95236789]
[1770055992044,8.6406,104.24,104.22,2.95236789]
[1770055992539,51.44734708,104.25,104.22,2.95236789]
[1770055992943,51.44734708,104.25,104.21,2.95236789]
[1770055993245,51.44734708,104.25,104.2,2.95236789]
[1770055993447,51.44734708,104.25,104.21,2.95236789]
[1770055995241,51.44734708,104.25,104.22,2.95236789]
[1770055995846,51.44644708,104.27,104.23,2.95236789]
[1770055996346,8.6389,104.26,104.21,2.95236789]
[1770055996644,42.80784708,104.25,104.2,2.95236789]
[1770055997039,8.6405,104.24,104.2,2.95236789]
[1770055998043,11.59286789,104.24,104.19,43.05571085]
[1770055998550,8.6405,104.24,104.19,43.05571085]
[1770055999549,42.80784708,104.25,104.19,46.00807874]